bitfinex-derivatives/quotes_SOLF0:USTF0_20250909
["timestamp","ask_amount","ask_price","bid_price","bid_amount"]
[1757399694001,0.02886929,218.73,218.67,4.04862358]
[1757399694194,0.02886929,218.73,218.69,5.0]
[1757399694398,0.02886929,218.73,218.7,4.05145861]
[1757399694595,0.02886929,218.73,218.66,5.0]
[1757399694806,0.02886929,218.73,218.67,4.05134437]
[1757399695003,0.02886929,218.73,218.68,4.05134437]
[1757399695199,0.02886929,218.73,218.69,4.05134437]
[1757399695405,0.02886929,218.73,218.65,9.02401391]
[1757399695599,0.02886929,218.73,218.66,3.93548523]
[1757399695806,0.02886929,218.73,218.67,8.93548523]
[1757399696007,0.02886929,218.73,218.69,5.0]
[1757399696206,0.02886929,218.73,218.65,9.02401391]
[1757399696207,0.02886929,218.73,218.71,5.0]
[1757399696412,0.02886929,218.73,218.68,5.0]
[1757399696704,0.02886929,218.73,218.69,3.93465744]
[1757399696897,0.02886929,218.73,218.7,3.93465744]
[1757399697100,0.02886929,218.73,218.71,3.9367439]
[1757399697298,0.02886929,218.73,218.72,5.0]
[1757399697499,0.02886929,218.73,218.72,8.93649441]
[1757399698100,0.02886929,218.73,218.72,3.93649441]
[1757399698304,0.02886929,218.73,218.67,5.0]
[1757399698504,0.02886929,218.73,218.68,3.94005694]
[1757399698706,0.02886929,218.73,218.69,3.94090169]
[1757399698906,7.59,218.8,218.71,5.0]
[1757399699099,0.03363735,218.73,218.72,3.94358342]
[1757399699305,0.03363735,218.73,218.72,8.94358342]
[1757399699503,7.59,218.8,218.72,8.94358342]
[1757399699703,0.03204418,218.75,218.72,5.0]
[1757399699903,0.03204418,218.75,218.66,5.0]
[1757399700106,0.03204418,218.75,218.68,5.0]
[1757399700300,0.03204418,218.75,218.7,5.0]
[1757399700500,0.03204418,218.75,218.72,5.0]
[1757399700808,0.03204418,218.75,218.74,5.0]
[1757399701007,0.03204418,218.75,218.74,8.94358342]
[1757399701405,0.03204418,218.75,218.74,3.94358342]
[1757399701808,0.03204418,218.75,218.66,5.0]
[1757399702008,0.03204418,218.75,218.68,5.0]
[1757399702212,0.03204418,218.75,218.69,3.95242181]
[1757399702513,0.03204418,218.75,218.71,5.0]
[1757399702701,0.03204418,218.75,218.72,8.95242181]
[1757399702905,0.03204418,218.75,218.73,3.95242181]
[1757399703104,0.03204418,218.75,218.74,3.95242181]
[1757399704314,0.03204418,218.75,218.74,8.95242181]
[1757399705814,0.03204418,218.75,218.74,5.0]
[1757399706017,0.03204418,218.75,218.74,8.95884942]
[1757399707315,314.95,218.89,218.75,5.0]
[1757399707611,7.59,218.89,218.78,5.0]
[1757399707806,7.59,218.95,218.83,5.0]
[1757399708016,7.59,218.95,218.84,3.95884942]
[1757399708310,2.98838204,218.93,218.78,7.98838204]
[1757399708515,7.59,218.92,218.79,3.95236222]
[1757399708704,7.59,218.92,218.87,0.03256933]
[1757399708911,2.98838204,218.9,218.87,0.03256933]
[1757399709113,7.59,218.89,218.87,0.03256933]
[1757399709309,2.98838204,218.9,218.87,0.03256933]
[1757399709712,7.59,218.89,218.87,0.03256933]
[1757399709912,2.98838204,218.9,218.87,0.03256933]
[1757399710507,7.59,218.89,218.87,0.03256933]
[1757399711017,7.59,218.94,218.87,0.03256933]
[1757399711517,7.59,218.88,218.77,5.0]
[1757399711709,7.59,218.88,218.78,3.94731176]
[1757399711911,7.59,218.88,218.79,3.94731176]
[1757399712115,7.59,218.88,218.8,3.94731176]
[1757399712317,7.59,218.88,218.77,5.0]
[1757399712518,7.59,218.88,218.78,3.94649717]
[1757399712820,0.03150783,218.86,218.79,3.94649717]
[1757399713016,0.03150783,218.86,218.8,3.94649717]
[1757399713321,0.03150783,218.86,218.81,8.97649717]
[1757399713509,0.03150783,218.86,218.74,2.98838204]
[1757399713510,0.03150783,218.86,218.75,9.114]
[1757399713716,0.03150783,218.86,218.77,5.0]
[1757399713910,0.03150783,218.86,218.78,3.94556684]
[1757399714113,0.03150783,218.86,218.79,3.94556684]
[1757399714313,0.03150783,218.86,218.8,3.94556684]
[1757399714520,0.03150783,218.86,218.77,5.0]
[1757399714820,0.03150783,218.86,218.78,3.94438941]
[1757399715020,0.03150783,218.86,218.8,5.0]
[1757399715219,0.03150783,218.86,218.82,5.0]
[1757399715519,0.03150783,218.86,218.81,5.0]
[1757399716422,0.03150783,218.86,218.85,5.0]
[1757399718421,0.03150783,218.86,218.85,5.46]
[1757399720318,7.67,218.98,218.85,5.46]
[1757399720518,7.67,218.98,218.88,7.98838204]
[1757399720718,2.0,219.0,218.91,2.98838204]
[1757399720921,2.0,219.0,218.92,5.0]
[1757399721621,2.0,219.0,218.94,0.0323857]
[1757399723223,9.67,219.0,218.94,0.0323857]
[1757399724625,9.67,219.0,218.95,3.9205006]
[1757399724824,2.0,219.0,218.94,0.0323857]
[1757399725025,2.0,219.0,218.95,3.9206377]
[1757399725220,2.0,219.0,218.96,3.92137242]
[1757399725420,2.0,219.0,218.94,0.0323857]
[1757399726230,2.0,219.0,218.95,3.91829027]
[1757399726528,7.67,218.99,218.94,0.0323857]
[1757399726828,7.67,218.99,218.95,3.91785897]
[1757399727023,2.0,219.0,218.94,0.0323857]
[1757399727024,9.67,219.0,218.94,0.0323857]
[1757399727228,12.65838204,219.0,218.94,0.0323857]
[1757399727626,9.67,219.0,218.94,0.0323857]
[1757399728323,2.0,219.0,218.95,3.9193091]
[1757399728524,9.67,219.0,218.94,0.0323857]
[1757399728824,7.67,218.99,218.95,3.91930766]
[1757399729028,2.0,219.0,218.94,0.0323857]
[1757399730024,2.0,219.0,218.95,3.91885766]
[1757399730025,7.67,218.99,218.95,3.91885766]
[1757399730231,7.67,218.99,218.94,0.0323857]
[1757399730436,7.67,218.99,218.95,3.91839752]
[1757399730626,7.67,218.99,218.96,3.91839752]
[1757399730832,7.67,218.99,218.94,5.0323857]
[1757399731133,7.67,218.99,218.95,8.91909289]
[1757399731328,7.67,218.99,218.96,3.91909289]
[1757399731528,7.67,218.99,218.95,5.0]
[1757399731729,9.67,219.0,218.96,3.91923832]
[1757399731929,9.67,219.0,218.94,0.0323857]
[1757399732130,2.0,219.0,218.95,3.91924451]
[1757399732333,7.67,218.99,218.94,0.0323857]
[1757399732529,2.0,219.0,218.94,0.0323857]
[1757399732727,4.98838204,219.0,218.94,0.0323857]
[1757399732931,2.0,219.0,218.94,0.0323857]
[1757399733134,7.67,218.99,218.94,0.0323857]
[1757399733331,4.98838204,219.0,218.94,0.0323857]
[1757399733933,7.67,218.99,218.94,0.0323857]
[1757399734537,4.98838204,219.0,218.94,0.0323857]
[1757399734830,7.67,218.99,218.94,0.0323857]
[1757399735237,7.67,218.96,218.85,5.01]
[1757399735438,7.67,218.96,218.86,4.1038965]
[1757399735640,7.67,218.96,218.87,3.9238265]
[1757399735939,7.67,218.96,218.88,3.9238265]
[1757399736134,7.67,218.96,218.89,3.9238265]
[1757399736340,7.67,218.96,218.9,3.9238265]
[1757399736539,7.67,218.93,218.91,3.9238265]
[1757399736738,7.67,218.93,218.86,0.18007]
[1757399736939,7.67,218.93,218.87,3.92491359]
[1757399737240,7.67,218.93,218.88,3.92491359]
[1757399737441,7.67,218.93,218.89,3.92491359]
[1757399737739,7.67,218.93,218.9,3.92491359]
[1757399737941,0.02999336,218.94,218.91,3.92491359]
[1757399738139,0.02999336,218.94,218.92,3.92491359]
[1757399738339,0.02999336,218.94,218.93,3.92491359]
[1757399738539,7.69999336,218.94,218.93,3.92491359]
[1757399739141,0.02999336,218.94,218.93,3.92491359]
[1757399739336,7.69999336,218.94,218.93,3.92491359]
[1757399741240,0.02999336,218.94,218.93,3.92491359]
[1757399743342,0.02999336,218.94,218.93,8.96491359]
[1757399747241,0.02999336,218.94,218.93,8.95491359]
[1757399751937,0.02999336,218.94,218.93,3.92491359]
[1757399753044,7.69999336,218.94,218.93,3.92491359]
[1757399755952,7.69999336,218.94,218.93,8.95491359]
[1757399755953,0.02999336,218.94,218.93,8.95491359]
[1757399757253,0.02999336,218.94,218.93,5.03]
[1757399760248,0.02999336,218.94,218.87,5.03]
[1757399760454,1.94045213,218.94,218.87,5.03]
[1757399760651,0.02999336,218.94,218.87,5.03]
[1757399761151,0.02999336,218.94,218.87,6.94045877]
[1757399761353,0.02999336,218.94,218.88,5.03]
[1757399761651,0.02999336,218.94,218.88,1.91045877]
[1757399761852,2.0,219.0,218.94,5.0]
[1757399762246,2.0,219.0,218.95,1.91045877]
[1757399762452,2.0,219.0,218.96,5.0]
[1757399762959,2.0,219.0,218.94,5.0]
[1757399763655,2.0,219.0,218.96,5.0]
[1757399763953,20.13112191,219.11,218.97,0.46]
[1757399764151,4.575,219.1,219.06,1.91045877]
[1757399764346,20.13112191,219.11,219.06,1.91045877]
[1757399764755,20.59112191,219.11,219.06,1.91045877]
[1757399764956,20.59112191,219.11,219.04,1.91045877]
[1757399765152,20.13112191,219.11,218.99,71.74945935]
[1757399765354,20.13112191,219.11,218.95,77.6869]
[1757399765355,0.02996029,219.1,219.03,1.91045877]
[1757399765758,20.13112191,219.11,218.95,77.6869]
[1757399766057,19.74112191,219.11,219.1,1.91045877]
[1757399766454,19.74112191,219.11,218.98,63.9267]
[1757399766455,19.74112191,219.11,219.02,13.75]
[1757399766656,19.74112191,219.11,219.1,1.91045877]
[1757399767054,19.74112191,219.11,219.03,4.1086]
[1757399767251,19.74112191,219.11,219.1,1.91045877]
[1757399767854,19.74112191,219.11,219.08,0.03062681]
[1757399768153,12.42152191,219.11,219.09,14.21]
[1757399768354,5.09891466,219.35,219.19,4.07]
[1757399768559,3.59688241,219.39,219.32,5.98045877]
[1757399768758,7.80498405,219.58,219.26,4.07]
[1757399768959,0.46,219.46,219.38,1.91045877]
[1757399769255,7.80498405,219.65,219.33,0.03391603]
[1757399769256,306.98,219.71,219.34,4.07]
[1757399769460,3.8,219.52,219.34,4.07]
[1757399769656,320.73,219.71,219.4,0.03387343]
[1757399769657,1.91045877,219.45,219.4,0.03387343]
[1757399770059,306.92,219.54,219.4,0.03387343]
[1757399770255,122.6,219.51,219.4,0.03387343]
[1757399770560,7.67,219.51,219.4,0.03387343]
[1757399770761,7.67,219.56,219.41,8.94598761]
[1757399770955,13.75,219.76,219.42,4.07]
[1757399770956,7.67,219.62,219.42,4.07]
[1757399771157,7.67,219.62,219.46,4.07]
[1757399772152,19.43,219.62,219.52,0.03296687]
[1757399772359,7.67,219.6,219.52,0.03296687]
[1757399772558,4.575,219.66,219.51,0.07]
[1757399772865,4.575,219.66,219.54,0.02974459]
[1757399772866,14.49,219.65,219.54,0.02974459]
[1757399773059,7.67,219.65,219.54,0.02974459]
[1757399773256,314.41,219.65,219.54,0.02974459]
[1757399773559,7.67,219.65,219.54,0.02974459]
[1757399773760,7.62,219.75,219.55,0.04]
[1757399773965,7.62,219.73,219.55,0.04]
[1757399774363,7.62,219.71,219.55,0.04]
[1757399774661,7.62,219.71,219.62,0.02995704]
[1757399774962,7.62,219.77,219.62,0.02995704]
[1757399775258,110.32,219.76,219.62,0.02995704]
[1757399775464,7.62,219.77,219.6,0.04]
[1757399775764,7.62,219.86,219.68,4.91598761]
[1757399775964,7.62,219.86,219.68,0.04]
[1757399775965,7.62,219.84,219.68,0.04]
[1757399776262,7.62,219.84,219.72,4.87598761]
[1757399776458,7.62,219.84,219.74,0.0328755]
[1757399776658,2.0,220.0,219.76,4.87598761]
[1757399776659,4.575,219.91,219.76,4.87598761]
[1757399776863,4.575,219.91,219.8,4.87598761]
[1757399777059,4.575,219.91,219.76,0.04]
[1757399777060,4.575,219.91,219.76,4.91598761]
[1757399777259,4.575,219.91,219.8,4.87598761]
[1757399777462,4.575,219.91,219.76,0.04]
[1757399777663,7.62,219.88,219.69,4.91598761]
[1757399777861,7.62,219.85,219.63,4.94598761]
[1757399778161,7.62,219.76,219.56,0.07]
[1757399778460,4.575,219.83,219.56,0.07]
[1757399778461,7.62,219.72,219.56,0.07]
[1757399778666,7.62,219.72,219.57,4.87598761]
[1757399779071,0.03429842,219.66,219.57,4.87598761]
[1757399779368,0.03429842,219.66,219.49,103.00136237]
[1757399779369,7.62,219.8,219.63,0.03]
[1757399779757,7.62,219.8,219.62,4.90601699]
[1757399779758,7.62,219.8,219.62,4.87598761]
[1757399780566,12.54,219.79,219.69,0.03024194]
[1757399780756,130.1,219.78,219.69,0.03024194]
[1757399780960,7.62,219.77,219.69,0.03024194]
[1757399781157,130.04,219.76,219.69,0.03024194]
[1757399781360,129.90911066,219.75,219.69,0.03024194]
[1757399781563,313.98,219.77,219.69,0.03024194]
[1757399781762,129.94,219.76,219.69,0.03024194]
[1757399781962,129.92,219.75,219.69,0.03024194]
[1757399782260,129.88,219.74,219.69,0.03024194]
[1757399782562,7.62,219.73,219.57,0.03]
[1757399782763,7.62,219.73,219.48,1.78]
[1757399782764,7.62,219.71,219.54,4.87598761]
[1757399783164,320.11,219.77,219.5,4.87598761]
[1757399783165,7.62,219.68,219.5,4.87598761]
[1757399783868,0.03291464,219.61,219.54,4.87598761]
[1757399784068,0.03291464,219.61,219.58,4.87598761]
[1757399784564,7.62,219.68,219.58,4.87598761]
[1757399784971,7.62,219.68,219.6,4.87598761]
[1757399785363,7.62,219.68,219.58,4.87598761]
[1757399785566,137.46,219.68,219.58,4.87598761]
[1757399785767,7.62,219.75,219.62,4.90988029]
[1757399785968,129.84,219.74,219.62,4.90988029]
[1757399786165,7.62,219.75,219.62,4.87598761]
[1757399786369,7.62,219.75,219.66,0.02939269]
[1757399786663,16.58,219.75,219.66,0.02939269]
[1757399786870,7.62,219.75,219.66,0.02939269]
[1757399787068,117.2,219.74,219.66,0.02939269]
[1757399787268,129.72,219.73,219.66,0.02939269]
[1757399787670,7.62,219.75,219.66,0.02939269]
[1757399788668,125.92,219.75,219.66,0.02939269]
[1757399788865,7.62,219.75,219.66,0.02939269]
[1757399789068,116.52,219.74,219.66,0.02939269]
[1757399789266,129.54,219.73,219.66,0.02939269]
[1757399789467,7.62,219.75,219.66,0.02939269]
[1757399789666,129.54,219.72,219.66,0.02939269]
[1757399789863,7.62,219.71,219.66,0.02939269]
[1757399790069,9.45098761,219.8,219.66,0.02939269]
[1757399790268,7.62,219.79,219.66,0.02939269]
[1757399790469,7.62,219.77,219.6,4.87598761]
[1757399790663,129.44,219.76,219.7,0.03300844]
[1757399790864,7.62,219.75,219.6,4.87598761]
[1757399791072,7.65297592,219.75,219.6,4.87598761]
[1757399791270,7.62,219.74,219.52,0.1]
[1757399791476,12.49598761,219.72,219.53,4.87598761]
[1757399791671,7.62,219.67,219.47,4.87598761]
[1757399791867,7.62,219.65,219.47,4.87598761]
[1757399792069,7.62,219.58,219.45,0.1]
[1757399792266,0.02947195,219.59,219.47,4.87598761]
[1757399792466,7.62,219.64,219.51,4.87598761]
[1757399792669,0.03065452,219.55,219.51,4.87598761]
[1757399792967,7.62,219.64,219.53,0.38]
[1757399793370,0.03390596,219.55,219.51,4.87598761]
[1757399793675,7.62,219.64,219.51,4.87598761]
[1757399793875,0.03136141,219.55,219.51,4.87598761]
[1757399794269,7.62,219.64,219.47,5.25598761]
[1757399794470,0.03486441,219.55,219.51,4.87598761]
[1757399794669,7.62,219.64,219.48,0.39]
[1757399794872,7.62,219.64,219.51,0.02988728]
[1757399795272,116.44,219.68,219.53,0.39]
[1757399795479,7.62,219.7,219.56,4.87598761]
[1757399795880,8.96,219.69,219.56,4.87598761]
[1757399796075,7.62,219.7,219.61,0.03010092]
[1757399796275,137.28,219.7,219.61,0.03010092]
[1757399797175,129.66,219.69,219.61,0.03010092]
[1757399797375,137.14,219.7,219.61,0.03010092]
[1757399797770,129.46,219.69,219.61,0.03010092]
[1757399797973,7.62,219.7,219.61,0.03010092]
[1757399798176,129.4,219.69,219.61,0.03010092]
[1757399798373,7.62,219.7,219.61,0.03010092]
[1757399798681,129.36,219.69,219.61,0.03010092]
[1757399799071,129.3,219.68,219.61,0.03010092]
[1757399799277,7.62,219.67,219.61,0.03010092]
[1757399800075,7.62,219.67,219.47,4.87598761]
[1757399800380,123.29496282,219.66,219.51,4.87598761]
[1757399800579,123.26,219.66,219.51,4.87598761]
[1757399800879,7.62,219.65,219.51,4.87598761]
[1757399801275,0.03225022,219.6,219.51,4.87598761]
[1757399801480,129.18,219.59,219.51,4.87598761]
[1757399801779,128.62,219.59,219.51,4.87598761]
[1757399801974,0.03225022,219.6,219.51,4.87598761]
[1757399803576,0.03225022,219.6,219.56,0.42]
[1757399803980,116.82,219.67,219.55,4.87598761]
[1757399804182,0.0305871,219.6,219.55,4.87598761]
[1757399804381,0.0305871,219.6,219.55,5.29598761]
[1757399804777,0.0305871,219.6,219.55,4.87598761]
[1757399804982,0.0305871,219.6,219.51,4.87598761]
[1757399808481,0.0305871,219.6,219.55,4.87598761]
[1757399808780,4.87598761,219.77,219.55,4.87598761]
[1757399808781,128.4,219.67,219.55,4.87598761]
[1757399808976,7.0,219.65,219.52,4.87598761]
[1757399809176,0.03319968,219.6,219.52,4.87598761]
[1757399809379,0.03319968,219.6,219.56,4.87598761]
[1757399810378,0.03319968,219.6,219.56,5.29598761]
[1757399810578,0.03319968,219.6,219.57,0.42]
[1757399811982,0.03319968,219.6,219.56,4.87598761]
[1757399813387,0.03319968,219.6,219.57,0.42]
[1757399814086,0.03319968,219.6,219.56,4.87598761]
[1757399814790,0.03319968,219.6,219.58,0.42]
[1757399815384,0.03319968,219.6,219.56,4.87598761]
[1757399815585,0.03319968,219.6,219.52,4.87598761]
[1757399815987,7.0,219.65,219.52,4.87598761]
[1757399816185,0.03243286,219.58,219.52,4.87598761]
[1757399816390,0.03243286,219.58,219.51,0.42]
[1757399816593,0.03243286,219.58,219.48,4.87598761]
[1757399816895,6.68,219.59,219.48,4.87598761]
[1757399817292,0.0291163,219.55,219.48,4.87598761]
[1757399820295,0.0291163,219.55,219.42,7.63535302]
[1757399820798,9.7,219.56,219.42,7.63535302]
[1757399820989,0.03135857,219.51,219.42,7.63535302]
[1757399821390,0.03135857,219.51,219.43,0.42]
[1757399821998,7.0,219.66,219.5,0.39]
[1757399822202,7.0,219.66,219.55,7.63535302]
[1757399823291,7.0,219.66,219.58,0.03430047]
[1757399824200,128.22,219.65,219.58,0.03430047]
[1757399824399,128.18,219.64,219.58,0.03430047]
[1757399824595,7.0,219.66,219.58,0.03430047]
[1757399824896,16.68,219.71,219.58,0.42430047]
[1757399825198,7.0,219.74,219.6,7.63535302]
[1757399825499,7.0,219.74,219.62,0.0314969]
[1757399825899,7.0,219.72,219.62,0.0314969]
[1757399826299,7.0,219.72,219.56,0.39]
[1757399826496,7.0,219.7,219.65,0.02926045]
[1757399826699,7.0,219.65,219.51,0.39]
[1757399827200,52.54,219.65,219.51,0.39]
[1757399827399,7.0,219.65,219.51,0.39]
[1757399827990,4.92726287,219.74,219.55,7.63535302]
[1757399828201,0.02970671,219.6,219.55,7.63535302]
[1757399828397,0.02970671,219.6,219.56,0.42]
[1757399828591,7.0,219.74,219.56,0.42]
[1757399828793,7.0,219.74,219.61,0.42]
[1757399828995,0.0308539,219.67,219.61,0.42]
[1757399831408,7.0,219.81,219.66,0.42]
[1757399831801,7.0,219.81,219.7,0.42]
[1757399832704,7.0,219.81,219.73,0.033165]
[1757399834306,7.46,219.81,219.73,0.033165]
[1757399834902,7.0,219.81,219.73,0.033165]
[1757399835403,113.18,219.8,219.73,0.033165]
[1757399835600,127.5,219.79,219.73,0.033165]
[1757399835807,6.98,219.88,219.73,0.033165]
[1757399836107,11.555,219.86,219.65,0.39]
[1757399836307,6.98,219.82,219.65,0.39]
[1757399837504,0.03117821,219.76,219.65,0.39]
[1757399843704,6.98,219.75,219.65,0.39]
[1757399845214,6.98,219.75,219.57,0.42]
[1757399846214,6.98,219.67,219.51,0.42]
[1757399846411,118.2,219.67,219.51,0.42]
[1757399846907,0.0331115,219.61,219.51,0.42]
[1757399850909,6.98,219.6,219.46,0.42]
[1757399851514,0.03346376,219.55,219.46,0.42]
[1757399855313,0.03346376,219.55,219.41,0.42]
[1757399855519,6.98,219.54,219.41,0.42]
[1757399855918,0.03156113,219.5,219.41,0.42]
[1757399861417,0.03156113,219.5,219.47,0.44]
[1757399861617,0.03156113,219.5,219.46,0.44]
[1757399862220,0.03156113,219.5,219.47,0.44]
[1757399862525,0.03156113,219.5,219.45,8.07535302]
[1757399862723,7.01156113,219.5,219.41,0.44]
[1757399863120,6.98,219.5,219.36,8.07535302]
[1757399863321,0.03110624,219.48,219.36,8.07535302]
[1757399863520,7.47,219.47,219.36,8.07535302]
[1757399863713,7.47,219.47,219.36,0.44]
[1757399863913,7.47,219.46,219.31,7.63535302]
[1757399864119,47.7,219.45,219.31,7.63535302]
[1757399864318,7.63535302,219.55,219.29,0.45]
[1757399864319,7.47,219.43,219.29,0.45]
[1757399864521,0.03223282,219.4,219.29,0.45]
[1757399866832,7.47,219.39,219.29,0.45]
[1757399869932,7.47,219.39,219.28,7.63535302]
[1757399870427,7.47,219.39,219.29,0.45]
[1757399871628,7.47,219.39,219.24,0.45]
[1757399872231,0.02996291,219.34,219.24,0.45]
[1757399878928,0.02996291,219.34,219.26,0.45]
[1757399879229,0.02996291,219.34,219.28,0.45]
[1757399879633,7.47,219.41,219.28,0.45]
[1757399879832,0.02954559,219.33,219.23,0.45]
[1757399881129,1.94,219.56,219.33,0.45]
[1757399881333,7.47,219.55,219.38,0.45]
[1757399881534,7.47,219.55,219.33,0.45]
[1757399881926,7.47,219.55,219.38,0.45]
[1757399882431,7.47,219.55,219.44,0.0320915]
[1757399883428,7.47,219.52,219.44,0.0320915]
[1757399883626,7.47,219.52,219.33,0.45]
[1757399883829,7.50259274,219.52,219.33,0.45]
[1757399884029,103.07,219.58,219.28,0.48]
[1757399884030,7.47,219.48,219.28,0.48]
[1757399884241,7.47,219.46,219.32,0.48]
[1757399885040,0.02909901,219.41,219.32,0.48]
[1757399886538,0.02909901,219.41,219.35,4.87406739]
[1757399886742,0.02909901,219.41,219.35,5.35406739]
[1757399887341,0.02909901,219.41,219.35,0.48]
[1757399888137,0.02909901,219.41,219.32,4.87406739]
[1757399888843,0.02909901,219.41,219.3,0.48]
[1757399890543,7.47,219.4,219.28,4.87406739]
[1757399891140,0.03245743,219.36,219.28,4.87406739]
[1757399891540,0.03245743,219.36,219.26,4.87406739]
[1757399895645,0.03245743,219.36,219.3,4.87406739]
[1757399895845,0.03245743,219.36,219.31,0.48]
[1757399896040,7.47,219.4,219.31,0.48]
[1757399896250,0.03351831,219.36,219.31,0.48]
[1757399896745,0.03351831,219.36,219.32,0.48]
[1757399896940,0.03351831,219.36,219.31,0.48]
[1757399897146,0.03351831,219.36,219.3,5.35406739]
[1757399897344,0.03351831,219.36,219.3,0.48]
[1757399898354,0.03351831,219.36,219.35,1.90243141]
[1757399898557,0.03351831,219.36,219.35,2.38243141]
[1757399899557,0.03351831,219.36,219.35,1.90243141]
[1757399900454,7.2,219.44,219.35,2.38243141]
[1757399900753,7.2,219.5,219.42,1.90243141]
[1757399901757,7.2,219.5,219.44,1.90243141]
[1757399902057,7.2,219.5,219.44,1.93434886]
[1757399902460,7.2,219.5,219.44,0.03191745]
[1757399902659,7.2,219.53,219.45,1.90243141]
[1757399903354,9.10243141,219.53,219.45,1.90243141]
[1757399903554,7.2,219.53,219.47,1.90243141]
[1757399903750,7.2,219.53,219.44,0.03191745]
[1757399903956,7.2,219.53,219.47,1.90243141]
[1757399904551,7.2,219.53,219.48,1.90243141]
[1757399904755,7.2,219.55,219.48,1.90243141]
[1757399906467,7.2,219.55,219.49,0.0341613]
[1757399906866,7.2,219.54,219.5,1.90243141]
[1757399907463,7.2,219.56,219.5,1.90243141]
[1757399907664,7.2,219.56,219.52,1.90243141]
[1757399907970,130.36,219.6,219.52,1.90243141]
[1757399908170,7.2,219.63,219.56,1.90243141]
[1757399908566,7.2,219.63,219.57,0.03456484]
[1757399909072,7.2,219.59,219.51,1.90243141]
[1757399909262,7.2,219.59,219.48,0.48]
[1757399909466,7.2,219.59,219.5,1.90243141]
[1757399909762,7.2,219.59,219.52,1.90243141]
[1757399910166,7.2,219.57,219.5,1.90243141]
[1757399911372,7.2,219.57,219.48,1.90243141]
[1757399911772,7.2,219.55,219.46,1.90243141]
[1757399911975,0.03126513,219.58,219.51,1.90243141]
[1757399912171,7.2,219.59,219.54,1.90243141]
[1757399912373,0.03422465,219.57,219.51,1.90243141]
[1757399912678,7.2,219.56,219.47,1.90243141]
[1757399912975,7.2,219.56,219.49,1.90243141]
[1757399913173,7.2,219.56,219.51,1.90243141]
[1757399913674,0.03422465,219.57,219.51,1.90243141]
[1757399913970,0.03422465,219.57,219.41,4.1015]
[1757399913971,0.03422465,219.57,219.41,0.52]
[1757399914176,0.03422465,219.57,219.56,2.42243141]
[1757399914377,7.2,219.65,219.56,0.52]
[1757399914572,0.0306361,219.59,219.51,0.52]
[1757399914877,1.90243141,219.64,219.55,1.90243141]
[1757399915377,7.2,219.56,219.53,1.90243141]
[1757399915565,7.2,219.56,219.51,1.90243141]
[1757399915969,0.02978331,219.57,219.51,1.90243141]
[1757399916474,0.02978331,219.57,219.53,1.90243141]
[1757399916671,0.02978331,219.57,219.46,0.52]
[1757399916975,7.22978331,219.57,219.46,0.52]
[1757399917171,7.22978331,219.57,219.51,1.90243141]
[1757399917673,7.22978331,219.57,219.53,1.90243141]
[1757399918074,0.02978331,219.57,219.53,2.42243141]
[1757399918273,0.02978331,219.57,219.55,1.90243141]
[1757399918570,7.2,219.62,219.55,2.42243141]
[1757399918965,0.02948884,219.58,219.55,2.42243141]
[1757399919474,0.02948884,219.58,219.4,63.8034]
[1757399919475,0.02948884,219.58,219.57,1.90243141]
[1757399919670,0.02948884,219.58,219.57,2.42243141]
[1757399919872,7.2,219.64,219.55,1.90243141]
[1757399920065,0.03390366,219.6,219.55,1.90243141]
[1757399920271,7.2,219.59,219.55,1.90243141]
[1757399920771,0.03390366,219.6,219.58,0.52]
[1757399920970,0.03390366,219.6,219.59,1.90243141]
[1757399921172,7.2,219.67,219.59,1.90243141]
[1757399921378,0.03499668,219.62,219.61,1.90243141]
[1757399922874,0.03499668,219.62,219.59,1.90243141]